bitfinex-derivatives/quotes_BTCF0:USTF0_20241010
["timestamp","ask_amount","ask_price","bid_price","bid_amount"]
[1728576128348,0.08214,60929.0,60919.0,0.3608]
[1728576128524,0.19,60928.0,60923.0,0.082148]
[1728576129020,0.272142,60928.0,60923.0,0.082148]
[1728576129220,0.082143,60927.0,60919.0,0.3608]
[1728576129422,0.0004,60920.0,60919.0,0.442954]
[1728576131338,0.0004,60920.0,60919.0,0.443954]
[1728576132123,0.3608,60935.0,60919.0,0.443954]
[1728576132326,0.3608,60935.0,60932.0,0.082136]
[1728576132531,0.3608,60935.0,60925.0,0.5508]
[1728576132729,0.3608,60936.0,60930.0,0.19]
[1728576133043,0.3608,60936.0,60925.0,0.3608]
[1728576133044,0.0331,60937.0,60935.0,0.19]
[1728576133327,0.148126,60940.0,60935.0,0.19]
[1728576133328,0.148126,60940.0,60936.0,0.08213]
[1728576133731,0.082127,60939.0,60936.0,0.08213]
[1728576134129,0.082129,60937.0,60935.0,0.19]
[1728576134431,0.066,60940.0,60935.0,0.19]
[1728576134432,0.0004,60936.0,60935.0,0.19]
[1728576135120,0.0004,60936.0,60935.0,0.082132]
[1728576135320,0.0004,60936.0,60935.0,0.083132]
[1728576135522,0.0004,60936.0,60935.0,0.273132]
[1728576135733,0.0004,60936.0,60935.0,0.274132]
[1728576136320,0.0004,60936.0,60935.0,0.273132]
[1728576136527,0.0004,60936.0,60935.0,0.274132]
[1728576137829,0.0004,60936.0,60935.0,0.273132]
[1728576138019,0.0004,60936.0,60935.0,0.274132]
[1728576138219,0.0004,60936.0,60935.0,0.002]
[1728576138437,0.082531,60936.0,60935.0,0.002]
[1728576138622,0.082531,60936.0,60935.0,0.001]
[1728576138819,0.0004,60936.0,60935.0,0.084132]
[1728576139423,0.0004,60936.0,60935.0,0.082132]
[1728576139629,0.0004,60936.0,60935.0,0.444932]
[1728576143230,0.0004,60936.0,60935.0,0.084132]
[1728576143429,0.1904,60936.0,60935.0,0.084132]
[1728576144133,0.0004,60936.0,60935.0,0.084132]
[1728576145723,0.0004,60936.0,60935.0,0.274132]
[1728576147839,0.082531,60936.0,60935.0,0.084132]
[1728576148033,1.535651,60936.0,60935.0,0.002]
[1728576148237,0.082147,60926.0,60925.0,0.082145]
[1728576148540,0.0004,60926.0,60919.0,0.3608]
[1728576148733,0.272548,60923.0,60919.0,0.3608]
[1728576148936,0.0004,60923.0,60922.0,0.08461175]
[1728576150130,0.0004,60923.0,60922.0,0.08561175]
[1728576151939,0.0094,60923.0,60922.0,0.08461175]
[1728576153037,0.0054,60923.0,60922.0,0.44841175]
[1728576154234,0.0004,60926.0,60925.0,0.082146]
[1728576154429,0.0004,60926.0,60925.0,0.272146]
[1728576155641,0.0004,60926.0,60925.0,0.082146]
[1728576156347,0.0004,60926.0,60925.0,0.272146]
[1728576157648,0.0004,60926.0,60925.0,0.33748359]
[1728576157951,0.272544,60926.0,60925.0,0.082146]
[1728576158142,0.272544,60926.0,60925.0,0.13092976]
[1728576158143,0.083544,60926.0,60925.0,0.13092976]
[1728576158359,0.083544,60926.0,60925.0,0.04878376]
[1728576158942,0.0014,60926.0,60924.0,0.04878376]
[1728576159141,0.0014,60926.0,60925.0,0.04878376]
[1728576159343,0.0014,60926.0,60925.0,0.14718605]
[1728576159638,0.0014,60926.0,60925.0,0.082146]
[1728576160244,0.0014,60926.0,60925.0,0.14720934]
[1728576160453,0.0014,60926.0,60925.0,0.082146]
[1728576161649,0.0014,60926.0,60924.0,0.06506334]
[1728576161946,0.082546,60925.0,60924.0,0.04884001]
[1728576162143,0.082546,60925.0,60922.0,0.3608]
[1728576162342,0.082548,60923.0,60922.0,0.3608]
[1728576163151,0.082548,60923.0,60922.0,0.44295]
[1728576163447,0.082548,60923.0,60922.0,0.08215]
[1728576163648,0.0004,60923.0,60922.0,0.13099668]
[1728576163948,0.0004,60923.0,60922.0,0.08415]
[1728576165437,0.0004,60923.0,60922.0,0.08615]
[1728576166145,0.0044,60923.0,60922.0,0.08315]
[1728576166344,0.0044,60923.0,60922.0,0.44395]
[1728576166544,0.0044,60923.0,60922.0,0.63395]
[1728576166945,0.0004,60923.0,60922.0,0.63395]
[1728576167152,0.0004,60923.0,60922.0,0.44695]
[1728576167343,0.082548,60923.0,60922.0,0.44695]
[1728576168849,0.082548,60923.0,60922.0,0.08615]
[1728576169449,0.082548,60923.0,60922.0,0.27615]
[1728576169652,0.082548,60923.0,60922.0,0.27415]
[1728576169853,0.084548,60923.0,60922.0,0.27415]
[1728576170550,0.082548,60923.0,60922.0,0.27415]
[1728576170751,0.082548,60923.0,60922.0,0.27515]
[1728576170952,0.0004,60923.0,60922.0,0.27515]
[1728576171149,0.0004,60923.0,60922.0,0.63595]
[1728576171452,0.0004,60923.0,60922.0,0.63395]
[1728576172050,0.0004,60923.0,60922.0,0.68279668]
[1728576172249,0.0004,60923.0,60922.0,0.63295]
[1728576173044,0.0004,60923.0,60922.0,0.63395]
[1728576173452,0.0014,60923.0,60922.0,0.63395]
[1728576174054,0.0004,60923.0,60922.0,0.63395]
[1728576174254,0.0004,60923.0,60922.0,0.63595]
[1728576175053,0.03322832,60923.0,60922.0,0.63595]
[1728576176259,0.03322832,60923.0,60922.0,0.68382175]
[1728576176559,0.03322832,60923.0,60922.0,0.68582175]
[1728576177355,0.03322832,60923.0,60922.0,0.63695]
[1728576178568,0.03322832,60923.0,60922.0,0.63595]
[1728576179167,0.03322832,60923.0,60922.0,0.63495]
[1728576179570,0.03322832,60923.0,60922.0,0.63695]
[1728576180171,0.03322832,60923.0,60922.0,0.63495]
[1728576180471,0.03322832,60923.0,60922.0,0.63695]
[1728576182374,0.03322832,60923.0,60922.0,0.8917506]
[1728576182685,0.03322832,60923.0,60922.0,0.89150696]
[1728576182872,0.113429,60938.0,60922.0,0.72792861]
[1728576183071,0.113429,60938.0,60935.0,0.442932]
[1728576183272,0.4221,60945.0,60935.0,0.442932]
[1728576183978,0.0613,60945.0,60935.0,0.442932]
[1728576184173,0.0613,60945.0,60935.0,0.49178239]
[1728576184776,0.0613,60945.0,60935.0,0.442932]
[1728576184981,0.082112,60950.0,60935.0,0.71434931]
[1728576185184,0.13128964,60964.0,60935.0,0.71434931]
[1728576185185,0.082106,60955.0,60950.0,0.082112]
[1728576185371,0.01297157,60964.0,60952.0,0.19]
[1728576185575,0.082096,60962.0,60961.0,0.19]
[1728576185872,0.0907,60965.0,60958.0,0.19]
[1728576186076,0.1904,60959.0,60954.0,0.3608]
[1728576186274,0.082505,60955.0,60951.0,0.08211]
[1728576186479,0.0004,60952.0,60951.0,0.08211]
[1728576189284,0.0004,60952.0,60951.0,1.72511]
[1728576189582,0.0064,60955.0,60954.0,0.082106]
[1728576189784,0.0064,60955.0,60954.0,0.462106]
[1728576189980,0.0004,60955.0,60954.0,0.764266]
[1728576190177,0.0004,60955.0,60954.0,0.272106]
[1728576190887,0.0004,60955.0,60954.0,0.2392933]
[1728576191479,0.0104,60955.0,60954.0,0.2402933]
[1728576193080,0.0104,60955.0,60954.0,0.0502933]
[1728576195585,0.04321109,60955.0,60954.0,0.0502933]
[1728576195775,0.04321109,60955.0,60954.0,0.2402933]
[1728576198476,0.04321109,60955.0,60954.0,0.2412933]
[1728576198477,0.04921109,60955.0,60954.0,0.2412933]
[1728576199188,0.04921109,60955.0,60954.0,0.0512933]
[1728576199687,0.04921109,60955.0,60954.0,0.002]
[1728576200583,0.04921109,60955.0,60954.0,0.084106]
[1728576200786,0.04921109,60955.0,60954.0,0.274106]
[1728576205888,0.0024609,60967.0,60954.0,0.274106]
[1728576205889,0.0024609,60967.0,60966.0,0.08209]
[1728576207392,0.0144609,60967.0,60966.0,0.08309]
[1728576207885,0.012,60967.0,60966.0,0.08309]
[1728576208085,0.033,60975.0,60965.0,0.55164]
[1728576208286,0.033,60975.0,60972.0,0.272081]
[1728576208895,0.033,60975.0,60974.0,0.08208]
[1728576209393,0.0152617,60980.0,60974.0,0.19]
[1728576209394,0.00246046,60980.0,60974.0,0.19]
[1728576209595,0.00246046,60980.0,60979.0,0.19]
[1728576209784,0.00246046,60980.0,60979.0,0.272073]
[1728576210496,0.00246046,60980.0,60979.0,0.082073]
[1728576210800,0.0974,60988.0,60987.0,0.082062]
[1728576210987,0.0974,60988.0,60987.0,0.272062]
[1728576212306,0.3628,60994.0,60993.0,0.082054]
[1728576212489,0.01307079,61013.0,60993.0,0.5508]
[1728576212689,0.00204,61012.0,61011.0,0.442829]
[1728576212986,0.11342,61019.0,61013.0,0.19]
[1728576213195,0.08202,61018.0,61017.0,0.19]
[1728576213390,0.0024579,61043.0,61017.0,0.19]
[1728576213592,0.0024579,61043.0,61018.0,0.3608]
[1728576213593,0.0314,61028.0,61018.0,0.3608]
[1728576213792,0.0314,61028.0,61027.0,0.19]
[1728576213997,0.3608,61033.0,61027.0,0.19]
[1728576214199,0.082001,61033.0,61032.0,0.19]
[1728576214397,0.082004,61030.0,61024.0,0.082012]
[1728576214609,0.082006,61029.0,61025.0,0.19]
[1728576214797,0.001,61031.0,61019.0,0.00245817]
[1728576214798,0.19,61027.0,61019.0,0.08447717]
[1728576215008,0.3608,61028.0,61019.0,0.00245817]
[1728576215009,0.082017,61021.0,61019.0,0.00245817]
[1728576215197,0.3608,61028.0,61019.0,0.19245817]
[1728576215198,0.0004,61020.0,61019.0,0.19245817]
[1728576217401,0.0004,61020.0,61019.0,0.27447717]
[1728576217601,0.0004,61020.0,61019.0,0.27547717]
[1728576218192,0.0004,61020.0,61019.0,0.63627717]
[1728576218401,0.081996,61036.0,61019.0,0.63627717]
[1728576218602,0.081996,61036.0,61034.0,0.19]
[1728576218906,0.081996,61036.0,61034.0,0.081999]
[1728576219204,0.081998,61035.0,61034.0,0.081999]
[1728576219404,0.081999,61034.0,61032.0,0.3608]
[1728576219598,0.081999,61034.0,61030.0,0.19]
[1728576219599,0.0004,61033.0,61030.0,0.19]
[1728576219905,0.0004,61031.0,61030.0,0.19]
[1728576220505,0.0004,61031.0,61030.0,0.272004]
[1728576221103,0.0004,61031.0,61030.0,0.083004]
[1728576221704,0.0004,61031.0,61030.0,0.273004]
[1728576222214,0.0004,61031.0,61030.0,0.083004]
[1728576222409,0.0004,61031.0,61030.0,1.364564]
[1728576222598,0.0004,61031.0,61030.0,0.273004]
[1728576222798,0.0004,61031.0,61030.0,0.764564]
[1728576223506,0.0014,61033.0,61030.0,0.764564]
[1728576223507,0.0014,61033.0,61030.0,1.364564]
[1728576223706,0.0014,61033.0,61032.0,0.442802]
[1728576223912,0.0024579,61043.0,61042.0,0.081988]
[1728576224102,0.3608,61059.0,61052.0,0.081975]
[1728576224305,0.3608,61059.0,61052.0,0.271975]
[1728576224604,0.081972,61055.0,61052.0,0.271975]
[1728576224798,0.08197,61056.0,61052.0,0.271975]
[1728576224998,0.04384661,61053.0,61052.0,0.271975]
[1728576225306,0.12581961,61053.0,61052.0,0.271975]
[1728576225602,0.12581961,61053.0,61052.0,0.272975]
[1728576225603,0.12681961,61053.0,61052.0,0.272975]
[1728576226199,0.04484661,61053.0,61052.0,0.272975]
[1728576226400,0.01384661,61053.0,61052.0,0.272975]
[1728576227007,0.09581961,61053.0,61052.0,0.273975]
[1728576227213,0.01384661,61053.0,61052.0,0.273975]
[1728576227399,0.001,61053.0,61052.0,0.273975]
[1728576229511,0.082973,61053.0,61052.0,0.001]
[1728576229714,0.082973,61053.0,61049.0,0.00088]
[1728576229715,0.081977,61050.0,61049.0,0.00088]
[1728576230012,0.081977,61050.0,61043.0,0.081986]
[1728576230013,0.1904,61050.0,61041.0,0.19]
[1728576230307,0.0004,61050.0,61049.0,0.271979]
[1728576232704,0.08198,61048.0,61047.0,0.3608]
[1728576232900,0.081987,61044.0,61042.0,0.3608]
[1728576233107,0.082387,61043.0,61042.0,0.3608]
[1728576233308,0.082387,61043.0,61039.0,0.00245737]
[1728576233309,0.0004,61043.0,61039.0,0.00245737]
[1728576233605,0.082391,61040.0,61039.0,0.08444837]
[1728576234808,0.082391,61040.0,61039.0,0.08544837]
[1728576235205,0.0004,61040.0,61039.0,0.08544837]
[1728576235615,0.0014,61040.0,61039.0,0.08544837]
[1728576236315,0.0024,61040.0,61039.0,0.08644837]
[1728576236516,0.0024,61040.0,61039.0,0.44724837]
[1728576236811,0.0004,61043.0,61039.0,1.53872837]
[1728576237011,0.0004,61043.0,61042.0,0.271988]
[1728576237717,0.0004,61043.0,61042.0,0.081988]
[1728576237908,0.0004,61043.0,61042.0,0.271988]
[1728576238512,0.0004,61043.0,61042.0,0.272988]
[1728576239117,0.0004,61043.0,61042.0,0.082988]
[1728576239319,0.082387,61043.0,61042.0,0.001]
[1728576239615,0.083387,61043.0,61042.0,0.001]
[1728576240803,0.0014,61043.0,61042.0,0.272988]
[1728576242121,0.0004,61048.0,61042.0,0.272988]
[1728576242304,0.0004,61048.0,61047.0,0.632781]
[1728576242610,0.0004,61048.0,61047.0,0.69786605]
[1728576243019,0.0004,61048.0,61047.0,0.632781]
[1728576243216,0.081958,61065.0,61047.0,1.124221]
[1728576243405,0.00140001,61074.0,61062.0,0.38]
[1728576243606,0.081944,61075.0,61073.0,0.19]
[1728576244008,0.081944,61075.0,61069.0,0.271952]
[1728576244208,0.0004,61070.0,61069.0,0.19]
[1728576244412,0.081954,61068.0,61066.0,0.19]
[1728576244613,0.0004,61070.0,61068.0,0.081952]
[1728576244817,0.0004,61070.0,61069.0,0.19]
[1728576245114,0.0004,61070.0,61060.0,0.41264003]
[1728576245115,0.0004,61067.0,61066.0,0.19]
[1728576245313,0.0008,61067.0,61066.0,0.19]
[1728576245515,0.081961,61062.0,61060.0,0.36325626]
[1728576245716,0.0004,61061.0,61060.0,0.44522026]
[1728576245912,0.0004,61061.0,61060.0,0.82522026]
[1728576246512,0.0004,61061.0,61060.0,0.72522026]
[1728576247809,0.0004,61061.0,61060.0,0.78965293]
[1728576248216,0.0004,61061.0,61060.0,0.72522026]
[1728576248414,0.0008,61067.0,61064.0,0.081958]
[1728576248610,0.0008,61067.0,61066.0,0.28]
[1728576249019,0.0008,61067.0,61064.0,0.13028712]
[1728576249215,0.0004,61065.0,61064.0,0.13028712]
[1728576249611,0.0004,61065.0,61060.0,0.36425626]
[1728576249811,0.0004,61065.0,61064.0,0.081959]
[1728576250619,0.0004,61065.0,61062.0,0.04832912]
[1728576250827,0.0004,61065.0,61060.0,0.36425626]
[1728576250828,0.081963,61061.0,61060.0,0.36425626]
[1728576251215,0.082363,61061.0,61060.0,0.36425626]
[1728576251415,0.082363,61061.0,61060.0,0.36325626]
[1728576251926,0.0004,61061.0,61060.0,0.72522026]
[1728576252428,0.0004,61061.0,61060.0,0.72622026]
[1728576252921,0.0004,61061.0,61060.0,0.77459598]
[1728576253118,0.0004,61061.0,61060.0,0.41379573]
[1728576253312,0.0004,61061.0,61060.0,0.36542026]
[1728576253523,0.0004,61061.0,61060.0,0.41379573]
[1728576253821,0.573683,61061.0,61060.0,0.001]
[1728576254015,0.573683,61061.0,61053.0,0.3608]
[1728576254016,1.09172,61061.0,61053.0,0.3608]
[1728576254219,0.081976,61051.0,61048.0,0.04837547]
[1728576254420,0.082379,61049.0,61048.0,0.04837547]
[1728576254721,0.082379,61049.0,61046.0,0.00092]
[1728576254722,0.0004,61049.0,61046.0,0.00092]
[1728576254917,0.0004,61049.0,61048.0,0.08198]
[1728576255721,0.0004,61049.0,61043.0,0.04837547]
[1728576255913,0.0004,61049.0,61045.0,0.13035947]
[1728576256321,0.08198,61048.0,61045.0,0.13035947]
[1728576256628,0.08198,61048.0,61045.0,0.081984]
[1728576257029,0.08198,61048.0,61043.0,0.04837547]
[1728576257030,0.0004,61049.0,61044.0,0.04837547]
[1728576257326,0.0004,61045.0,61044.0,0.04837547]
[1728576257824,0.0004,61045.0,61043.0,0.13036247]
[1728576258025,0.0004,61045.0,61041.0,0.40917547]
[1728576258026,0.082386,61044.0,61041.0,0.40917547]
[1728576258335,0.0004,61044.0,61043.0,0.081987]
[1728576258520,0.0004,61044.0,61043.0,0.082987]
[1728576259322,0.0004,61044.0,61043.0,0.081987]
[1728576260823,0.0004,61044.0,61043.0,0.361987]
[1728576261226,0.0004,61044.0,61043.0,0.41036247]
[1728576261425,0.0004,61044.0,61043.0,0.361987]
[1728576262031,0.0004,61044.0,61043.0,0.41036247]
[1728576262224,0.0004,61044.0,61043.0,0.363987]
[1728576263322,0.0014,61044.0,61043.0,0.363987]
[1728576263829,0.0014,61044.0,61043.0,0.002]
[1728576264025,0.083385,61044.0,61043.0,0.002]
[1728576264432,0.081991,61040.0,61036.0,0.3608]
[1728576264735,0.082395,61037.0,61036.0,0.3608]
[1728576264924,0.082395,61037.0,61031.0,0.13037747]
[1728576264925,0.0004,61037.0,61031.0,0.13037747]
[1728576265124,0.082402,61032.0,61031.0,0.082002]
[1728576265631,0.082005,61030.0,61026.0,0.6408]
[1728576265819,0.082005,61030.0,61029.0,0.082006]
[1728576266025,0.0004,61027.0,61026.0,0.6408]
[1728576266329,0.0008,61027.0,61026.0,0.72281]
[1728576267232,0.0008,61027.0,61026.0,0.73481]
[1728576268021,0.082006,61029.0,61028.0,0.082007]
[1728576268224,0.082006,61029.0,61028.0,0.73038247]
[1728576268424,0.082006,61029.0,61028.0,1.173567]
[1728576268630,0.082006,61029.0,61028.0,0.10764788]
[1728576269133,0.082006,61029.0,61028.0,0.13040339]
[1728576269337,0.082006,61029.0,61028.0,0.04923463]
[1728576270030,0.082008,61027.0,61026.0,0.02284]
[1728576270223,0.0004,61027.0,61026.0,0.46481]
[1728576270425,0.0004,61027.0,61026.0,1.55441]
[1728576271833,0.0004,61027.0,61026.0,0.95441]
[1728576272027,0.0004,61027.0,61026.0,1.55441]
[1728576272231,0.0004,61027.0,61026.0,1.54441]
[1728576272730,0.0004,61027.0,61026.0,0.94441]
[1728576273024,0.0004,61027.0,61026.0,0.46281]
[1728576273829,0.0004,61027.0,61026.0,0.45281]
[1728576274026,0.082408,61027.0,61026.0,0.45281]
[1728576274425,0.362408,61027.0,61026.0,0.01]
[1728576274846,0.362408,61027.0,61026.0,0.02]
[1728576275049,0.082408,61027.0,61026.0,0.02]
[1728576281461,0.082408,61027.0,61026.0,0.10201]
[1728576282659,0.082408,61027.0,61026.0,0.02]
[1728576283364,0.082408,61027.0,61026.0,0.38201]
[1728576283365,0.0004,61027.0,61026.0,0.38201]
[1728576286958,0.082408,61027.0,61026.0,0.38201]
[1728576287270,0.082408,61027.0,61012.0,0.06473097]
[1728576287271,0.4916,61026.0,61012.0,0.06473097]
[1728576287455,0.082037,61006.0,61004.0,0.082039]
[1728576287647,0.082037,61006.0,61005.0,0.08449683]
[1728576287648,0.0004,61006.0,61005.0,0.08449683]
[1728576288859,0.0004,61006.0,61005.0,0.00245883]
[1728576289063,0.082437,61006.0,61005.0,0.00245883]
[1728576290165,0.082042,61002.0,61001.0,0.3608]
[1728576290556,0.082042,61002.0,60990.0,0.3608]
[1728576290557,0.082055,60995.0,60994.0,0.082053]
[1728576290758,0.2804,60995.0,60985.0,0.3608]
[1728576290953,0.2804,60986.0,60985.0,0.442865]
[1728576291867,0.0004,60986.0,60985.0,0.803665]
[1728576292258,0.0004,60986.0,60985.0,0.810665]
[1728576293762,0.0004,60986.0,60985.0,0.811665]
[1728576294267,0.0004,60986.0,60985.0,0.804665]
[1728576294464,0.0004,60986.0,60985.0,0.803665]
[1728576294668,0.2804,60986.0,60985.0,0.442865]
[1728576294868,0.362463,60986.0,60985.0,0.3608]
[1728576295364,0.362463,60986.0,60970.0,0.082084]
[1728576295365,0.082065,60985.0,60975.0,0.082078]
[1728576295557,0.082065,60985.0,60969.0,0.36325944]
[1728576295558,0.082082,60973.0,60970.0,0.082084]
[1728576295759,0.082082,60973.0,60971.0,0.082082]
[1728576295958,0.082082,60973.0,60972.0,0.082082]
[1728576296965,0.442882,60973.0,60972.0,0.082082]
[1728576297271,0.443882,60973.0,60972.0,0.090082]
[1728576297469,0.443882,60973.0,60972.0,0.008]
[1728576298773,0.443882,60973.0,60972.0,0.450882]
[1728576298774,0.001,60973.0,60972.0,0.450882]
[1728576299167,0.001,60973.0,60972.0,0.458882]
[1728576299168,0.002,60973.0,60972.0,0.458882]
[1728576299962,0.001,60973.0,60972.0,0.450882]
[1728576300157,0.001,60973.0,60972.0,0.453882]
[1728576300967,0.001,60973.0,60972.0,0.458882]
[1728576300968,0.002,60973.0,60972.0,0.458882]
[1728576302162,0.0004,60976.0,60972.0,0.458882]
[1728576302368,0.0004,60976.0,60975.0,0.082078]
[1728576302869,0.0004,60986.0,60974.0,0.28]
[1728576303075,0.0004,60986.0,60985.0,0.082065]
[1728576303466,0.3608,60994.0,60985.0,0.145465]
[1728576303786,0.3608,60994.0,60993.0,0.082054]
[1728576304490,0.0004,60995.0,60994.0,0.082053]
[1728576306985,0.0004,60995.0,60993.0,0.0382]
[1728576306986,0.082053,60994.0,60993.0,0.005]
[1728576307271,0.082053,60994.0,60985.0,0.0634]
[1728576307272,0.082063,60986.0,60985.0,0.0304]
[1728576307475,0.0004,60986.0,60980.0,0.08453085]
[1728576307670,0.08247,60981.0,60980.0,0.00245985]
[1728576308077,0.08247,60981.0,60970.0,0.28]
[1728576308078,0.0004,60981.0,60972.0,0.082081]
[1728576308273,0.443281,60973.0,60972.0,0.082081]
[1728576308580,0.0004,60973.0,60972.0,0.082081]
[1728576308881,0.0004,60973.0,60972.0,0.442881]
[1728576309978,0.0004,60973.0,60966.0,0.345]
[1728576310178,0.0004,60973.0,60972.0,0.082082]
[1728576310676,0.083481,60973.0,60972.0,0.091082]
[1728576310978,0.083481,60973.0,60972.0,0.009]
[1728576311478,0.083481,60973.0,60972.0,0.017]
[1728576311479,0.084481,60973.0,60972.0,0.017]
[1728576313671,0.856521,60973.0,60972.0,0.017]
[1728576313974,1.817321,60973.0,60972.0,0.017]
[1728576314779,0.082098,60960.0,60955.0,0.0327]
[1728576314969,0.082098,60960.0,60956.0,0.082103]
[1728576314970,0.40221885,60960.0,60956.0,0.082103]
[1728576315175,0.40221885,60960.0,60957.0,0.082101]
[1728576315679,0.40221885,60960.0,60955.0,0.0327]
[1728576315896,0.0004,60960.0,60959.0,0.08456056]
[1728576317279,0.3608,60968.0,60959.0,0.09256056]
[1728576317480,0.08594305,60973.0,60967.0,0.362089]
[1728576317481,0.36466105,60973.0,60967.0,0.362089]
[1728576317680,0.36466105,60973.0,60972.0,0.362082]
[1728576318478,0.36466105,60973.0,60972.0,0.32927361]
[1728576319386,0.36566105,60973.0,60972.0,0.32927361]
[1728576319787,0.36466105,60973.0,60972.0,0.32927361]
[1728576320690,0.36566105,60973.0,60972.0,0.32927361]
[1728576321297,0.00486105,60973.0,60972.0,0.33727361]
[1728576321588,0.0004,60995.0,60985.0,0.082065]
[1728576321788,0.0004,60995.0,60993.0,0.082054]
[1728576321984,0.0004,60995.0,60993.0,0.362054]
[1728576322381,0.082453,60994.0,60993.0,0.362054]
[1728576322986,0.0004,60994.0,60989.0,0.362058]
[1728576323190,0.0004,60990.0,60989.0,0.362058]
[1728576323886,0.082458,60990.0,60989.0,0.362058]
[1728576324787,0.0004,60990.0,60989.0,0.362058]
[1728576325785,0.0094,60990.0,60989.0,0.363058]
[1728576326196,0.0094,60990.0,60989.0,0.083058]
[1728576326394,0.371458,60990.0,60989.0,0.001]
[1728576326588,1.463338,60990.0,60989.0,0.001]
[1728576328196,1.183338,60990.0,60989.0,0.001]
[1728576328388,0.583338,60990.0,60989.0,0.001]
[1728576328695,0.091458,60990.0,60989.0,0.001]
[1728576332499,0.101458,60990.0,60989.0,0.002]
[1728576333608,0.101458,60990.0,60989.0,0.084059]
[1728576333795,0.0194,60990.0,60989.0,0.084059]
[1728576335200,0.0004,60994.0,60989.0,0.444859]
[1728576335403,0.0004,60995.0,60993.0,0.362054]
[1728576335703,0.3608,61008.0,60998.0,0.082047]
[1728576335704,0.082039,61005.0,60998.0,0.082047]
[1728576335903,0.3608,61008.0,60998.0,0.362047]
[1728576335904,0.442841,61003.0,60998.0,0.362047]
[1728576336404,0.3608,61003.0,60998.0,0.362047]
[1728576336610,0.3608,61003.0,61001.0,0.082043]
[1728576336803,0.082036,61007.0,61001.0,0.082043]
[1728576338312,0.442831,61011.0,61001.0,0.082043]
[1728576338617,0.082032,61010.0,61001.0,0.082043]
[1728576338801,0.0004,61013.0,61001.0,0.082043]
[1728576339003,0.082029,61012.0,61005.0,0.082038]
[1728576339201,0.082029,61012.0,61005.0,0.722838]
[1728576339614,0.0004,61013.0,61005.0,0.722838]
[1728576339806,0.0004,61013.0,61005.0,0.69005219]
[1728576340913,0.082427,61013.0,61005.0,0.69005219]
[1728576341117,0.082029,61012.0,61005.0,0.69005219]
[1728576341612,0.082029,61012.0,61005.0,0.70405219]
[1728576342105,0.082029,61012.0,61005.0,0.69805219]
[1728576342307,0.0014,61006.0,61005.0,0.70605219]
[1728576342908,0.0014,61006.0,61005.0,0.69805219]
[1728576342909,0.0004,61006.0,61005.0,0.69805219]
[1728576343112,0.0014,61006.0,61005.0,0.70505219]
[1728576344214,0.083437,61006.0,61005.0,0.015]
[1728576345210,0.083437,61006.0,61005.0,0.009]
[1728576345417,0.083437,61006.0,61005.0,0.015]
[1728576346021,1.455197,61006.0,61005.0,0.015]
[1728576346325,1.455197,61006.0,60989.0,0.3608]
[1728576346326,1.40556,61006.0,60989.0,0.3608]
[1728576346518,1.40556,61006.0,60988.0,0.0331]
[1728576346519,0.082059,60989.0,60988.0,0.0331]
[1728576346923,0.082459,60989.0,60988.0,0.0331]
[1728576347614,0.443259,60989.0,60988.0,0.0331]
[1728576349023,0.443259,60989.0,60988.0,0.115161]
[1728576349319,0.0004,60989.0,60988.0,0.115161]
[1728576352625,0.0014,60989.0,60988.0,0.121161]
[1728576354216,0.083459,60989.0,60988.0,0.006]
[1728576354822,0.083459,60989.0,60985.0,0.082064]
[1728576354823,0.082062,60988.0,60985.0,0.082064]
[1728576355028,0.0004,60986.0,60985.0,0.082065]
[1728576356220,0.0004,60986.0,60985.0,0.362065]
[1728576356634,0.0004,60986.0,60985.0,0.364065]
[1728576358223,0.0004,60986.0,60985.0,0.362065]
[1728576358522,0.0014,60986.0,60985.0,0.362065]
[1728576359028,0.0004,60986.0,60985.0,0.362065]
[1728576359329,0.0004,60986.0,60985.0,0.365065]
[1728576360022,0.0004,60986.0,60985.0,0.368065]
[1728576360623,0.0004,60989.0,60985.0,0.368065]
[1728576360818,0.0004,60989.0,60988.0,0.442861]
[1728576362425,0.0004,60989.0,60985.0,0.006]
[1728576362632,0.082463,60986.0,60985.0,0.003]
[1728576362819,0.082065,60985.0,60984.0,0.082066]
[1728576363124,0.082067,60983.0,60982.0,0.082067]
[1728576363531,0.0004,60985.0,60984.0,0.082066]
[1728576363723,0.0004,60985.0,60984.0,0.362066]
[1728576364333,0.0004,60985.0,60984.0,0.853986]
[1728576364721,0.0004,60985.0,60984.0,0.082066]
[1728576364917,0.0004,60985.0,60984.0,0.362066]
[1728576365517,0.0014,60985.0,60984.0,0.370066]
[1728576365719,0.0014,60985.0,60984.0,0.38309047]
[1728576366526,0.0014,60985.0,60984.0,0.090066]
[1728576366740,0.083465,60985.0,60984.0,0.090066]
[1728576366927,0.0024,60985.0,60984.0,0.099066]
[1728576367527,0.0014,60985.0,60984.0,0.091066]
[1728576367730,0.084465,60985.0,60984.0,0.104066]
[1728576368030,0.084465,60985.0,60984.0,0.022]
[1728576368435,0.083465,60985.0,60984.0,0.091066]
[1728576368623,0.0024,60985.0,60984.0,0.098066]
[1728576369227,0.0014,60985.0,60984.0,0.091066]
[1728576369429,0.084465,60985.0,60984.0,0.091066]
[1728576369830,0.0024,60985.0,60984.0,0.091066]
[1728576370324,0.084465,60985.0,60984.0,0.009]
[1728576370935,1.176385,60985.0,60984.0,0.009]
[1728576371325,1.176385,60985.0,60963.0,0.0608]
[1728576371326,1.10136959,60985.0,60963.0,0.0922]
[1728576371531,0.082088,60968.0,60963.0,0.0922]
[1728576371734,0.082088,60968.0,60967.0,0.082088]